fUST/lending_fUST_20250819
["ID","MTS","AMOUNT","RATE_DAILY","PERIOD"]
[380149265,1755576646841,-480.0,0.00020273,2]
[380149267,1755576646851,-751.3,0.00020273,2]
[380149268,1755576646859,-480.0,0.00020273,2]
[380149270,1755576646869,-480.0,0.00020273,2]
[380149272,1755576646878,-480.0,0.00020273,2]
[380149274,1755576646887,-511.83,0.00020273,2]
[380149276,1755576646897,-480.0,0.00020273,2]
[380149278,1755576646906,-1257.65,0.00020273,2]
[380149280,1755576646915,-659.57,0.00020273,2]
[380149282,1755576646924,-1808.25,0.00020273,2]
[380149284,1755576646934,-187.11495185,0.00020273,2]
[380149286,1755576646943,-480.0,0.00020273,2]
[380149288,1755576646952,-610.61,0.00020273,2]
[380149290,1755576646962,-4750.53,0.00020273,2]
[380149292,1755576646972,-538.13,0.00020273,2]
[380149294,1755576646981,-765.35,0.00020273,2]
[380149296,1755576646990,-1813.41,0.00020273,2]
[380149298,1755576646999,-555.44,0.00020273,2]
[380149300,1755576647009,-642.65,0.00020273,2]
[380149302,1755576647018,-480.0,0.00020273,2]
[380149304,1755576647028,-480.0,0.00020273,2]
[380149306,1755576647038,-537.56,0.00020273,2]
[380149308,1755576647048,-480.0,0.00020273,2]
[380149310,1755576647057,-517.26,0.00020273,2]
[380149312,1755576647068,-506.24,0.00020273,2]
[380149314,1755576647077,-819.46,0.00020273,2]
[380149316,1755576647090,-5651.17,0.00020273,2]
[380149318,1755576647099,-151.0,0.000203,3]
[380149320,1755576647109,-211.84016482,0.00020313,2]
[380149322,1755576647119,-151.0,0.000204,4]
[380149324,1755576647127,-168.0,0.00020416,2]
[380149326,1755576647137,-236.14171012,0.00020447,2]
[380149328,1755576647146,-347.0,0.00020448,2]
[380149330,1755576647156,-347.0,0.00020448,2]
[380149332,1755576647165,-168.0,0.00020485,2]
[380149334,1755576647174,-3025.61,0.00020488,2]
[380149336,1755576647183,-430.0,0.000205,2]
[380149337,1755576647192,-151.0,0.000205,4]
[380149339,1755576647202,-647.0,0.000205,2]
[380149341,1755576647211,-2840.46,0.00020537,2]
[380149343,1755576647221,-480.0,0.00020537,2]
[380149345,1755576647231,-1259.8,0.00020537,2]
[380149347,1755576647241,-835.35,0.00020537,2]
[380149349,1755576647250,-493.24,0.00020537,2]
[380149351,1755576647259,-1213.67,0.00020537,2]
[380149353,1755576647268,-1371.55,0.00020537,2]
[380149355,1755576647278,-211.80864667,0.00020537,2]
[380149357,1755576647288,-791.974,0.00020546,2]
[380149359,1755576647298,-179.96321779,0.00020546,2]
[380149361,1755576647307,-246.76422272,0.00020546,2]
[380149363,1755576647317,-1242.62675504,0.00020547,2]
[380149365,1755576647326,-480.0,0.00020547,2]
[380149367,1755576647336,-480.0,0.00020547,2]
[380149369,1755576647345,-480.0,0.00020547,2]
[380149371,1755576647355,-480.0,0.00020547,2]
[380149373,1755576647364,-2644.05,0.00020547,2]
[380149375,1755576647374,-480.0,0.00020547,2]
[380149377,1755576647383,-480.0,0.00020547,2]
[380149379,1755576647392,-480.0,0.00020547,2]
[380149381,1755576647402,-590.11,0.00020547,2]
[380149383,1755576647412,-623.39,0.00020547,2]
[380149385,1755576647421,-480.0,0.00020547,2]
[380149387,1755576647430,-480.0,0.00020547,2]
[380149389,1755576647439,-605.08,0.00020547,2]
[380149390,1755576647449,-1935.73,0.00020547,2]
[380149393,1755576647459,-399.93584607,0.00020547,2]
[380149395,1755576647469,-480.0,0.00020547,2]
[380149396,1755576647478,-611.81,0.00020547,2]
[380149398,1755576647488,-943.42,0.00020547,2]
[380149400,1755576647497,-480.0,0.00020547,2]
[380149402,1755576647507,-480.0,0.00020547,2]
[380149404,1755576647516,-480.0,0.00020547,2]
[380149406,1755576647526,-417.80171575,0.00020547,2]
[380149408,1755576647535,-480.0,0.00020547,2]
[380149410,1755576647545,-480.0,0.00020547,2]
[380149412,1755576647554,-480.0,0.00020547,2]
[380149414,1755576647564,-480.0,0.00020547,2]
[380149416,1755576647578,-713.99,0.00020547,2]
[380149418,1755576647591,-692.39,0.00020547,2]
[380149420,1755576647600,-480.0,0.00020547,2]
[380149422,1755576647609,-480.0,0.00020547,2]
[380149424,1755576647619,-480.0,0.00020547,2]
[380149426,1755576647628,-480.0,0.00020547,2]
[380149428,1755576647637,-480.0,0.00020547,2]
[380149430,1755576647647,-1669.04,0.00020547,2]
[380149440,1755576647734,-480.0,0.00020547,2]
[380149442,1755576647743,-860.91,0.00020547,2]
[380149444,1755576647752,-808.67,0.00020547,2]
[380149446,1755576647761,-480.0,0.00020547,2]
[380149448,1755576647771,-804.42,0.00020547,2]
[380149450,1755576647780,-480.0,0.00020547,2]
[380149452,1755576647789,-1152.14,0.00020547,2]
[380149454,1755576647799,-480.0,0.00020547,2]
[380149456,1755576647808,-480.0,0.00020547,2]
[380149458,1755576647817,-509.31,0.00020547,2]
[380149460,1755576647826,-775.43,0.00020547,2]
[380149462,1755576647839,-236.81751599,0.00020547,2]
[380149463,1755576647848,-1809.81,0.00020547,2]
[380149465,1755576647858,-827.84,0.00020547,2]
[380149467,1755576647866,-1110.32,0.00020547,2]
[380149469,1755576647875,-798.28,0.00020547,2]
[380149471,1755576647885,-1221.58,0.00020547,2]
[380149473,1755576647894,-480.0,0.00020547,2]
[380149475,1755576647903,-604.87,0.00020547,2]
[380149477,1755576647912,-480.0,0.00020547,2]
[380149479,1755576647921,-3735.84,0.00020547,2]
[380149481,1755576647931,-2384.61,0.00020547,2]
[380149483,1755576647940,-1651.77,0.00020547,2]
[380149485,1755576647949,-1864.35,0.00020547,2]
[380149487,1755576647959,-707.33,0.00020547,2]
[380149489,1755576647968,-480.0,0.00020547,2]
[380149491,1755576647978,-751.3,0.00020547,2]
[380149493,1755576647987,-480.0,0.00020547,2]
[380149495,1755576647997,-480.0,0.00020547,2]
[380149497,1755576648006,-480.0,0.00020547,2]
[380149499,1755576648016,-511.83,0.00020547,2]
[380149501,1755576648025,-480.0,0.00020547,2]
[380149503,1755576648034,-1257.65,0.00020547,2]
[380149505,1755576648043,-659.57,0.00020547,2]
[380149507,1755576648053,-1808.25,0.00020547,2]
[380149509,1755576648063,-480.0,0.00020547,2]
[380149511,1755576648072,-610.61,0.00020547,2]
[380149513,1755576648082,-4750.53,0.00020547,2]
[380149515,1755576648093,-538.13,0.00020547,2]
[380149517,1755576648102,-765.35,0.00020547,2]
[380149519,1755576648111,-862.60758155,0.00020547,2]
[380149521,1755576648123,-950.80241845,0.00020547,2]
[380149523,1755576648133,-555.44,0.00020547,2]
[380149525,1755576648142,-642.65,0.00020547,2]
[380149527,1755576648151,-591.11490971,0.00020547,2]
[380149529,1755576648160,-480.0,0.00020547,2]
[380149531,1755576648170,-386.75877544,0.00020547,2]
[380150165,1755576768453,302.79,0.0001861,120]
[380150167,1755576846397,806.19,0.00028767,120]
[380150171,1755577125268,271.5510692,0.00028,120]
[380150172,1755577237312,159.266538,0.00013699,2]
[380150174,1755577334760,500.0,0.00027945,120]
[380150175,1755577335006,399.67641735,0.00027945,120]
[380150186,1755577641095,-311.0982553,0.000189,2]
[380150187,1755577641116,-294.6469827,0.00019,2]
[380150189,1755577722309,166.07497147,0.00027076,120]
[380150190,1755577727586,23684.43054284,0.00018,2]
[380150191,1755577791157,7620.28,0.00027076,60]
[380150216,1755577831860,-709.25467436,0.00019,2]
[380150218,1755577831870,-1200.0,0.00019076,2]
[380150220,1755577831880,-1152.0,0.00019077,2]
[380150222,1755577831890,-300.0,0.00019077,2]
[380150226,1755577831899,-300.0,0.00019077,2]
[380150228,1755577831909,-300.0,0.00019077,2]
[380150229,1755577831918,-300.0,0.00019077,2]
[380150231,1755577831927,-201.99078821,0.00019078,2]
[380150233,1755577831936,-1607.87981086,0.00019078,2]
[380150243,1755577833385,256.839573,0.00028767,120]
[380150266,1755577837711,-5763.89581826,0.00019078,2]
[380150267,1755577837767,-7551.1563929,0.00019078,2]
[380150268,1755577837777,-785.4,0.00019168,3]
[380150269,1755577837787,-500.60395532,0.00019173,2]
[380150270,1755577837796,-18839.93056071,0.00019173,2]
[380150271,1755577837805,-500.0,0.00019173,2]
[380150272,1755577837814,-500.0,0.00019173,2]
[380150273,1755577837824,-161.11718925,0.00019173,2]
[380150274,1755577837833,-500.0,0.00019173,2]
[380150275,1755577837843,-500.0,0.00019173,2]
[380150276,1755577837856,-291.93663666,0.00019177,2]
[380150277,1755577837866,-440.69476932,0.00019178,2]
[380150278,1755577837875,-480.0,0.00019178,2]
[380150279,1755577837885,-480.0,0.00019178,2]
[380150280,1755577837894,-480.0,0.00019178,2]
[380150281,1755577837903,-480.0,0.00019178,2]
[380150282,1755577837912,-468.43143579,0.00019178,2]
[380150283,1755577837921,-327.51836313,0.00019178,2]
[380150284,1755577837931,-396.69188472,0.00019178,2]
[380150285,1755577837940,-480.0,0.00019178,2]
[380150286,1755577837950,-446.32057051,0.00019178,2]
[380150287,1755577837959,-480.0,0.00019178,2]
[380150288,1755577837969,-480.0,0.00019178,2]
[380150289,1755577837983,-460.0,0.00019178,2]
[380150290,1755577837992,-466.11127192,0.00019178,2]
[380150291,1755577838008,-13.88872808,0.00019178,2]
[380150292,1755577838019,-460.0,0.00019178,2]
[380150293,1755577838032,-460.0,0.00019178,2]
[380150294,1755577838041,-460.0,0.00019178,2]
[380150295,1755577838050,-480.0,0.00019178,2]
[380150296,1755577838059,-480.0,0.00019178,2]
[380150297,1755577838069,-471.26850053,0.00019178,2]
[380150298,1755577838078,-460.0,0.00019178,2]
[380150299,1755577838089,-480.0,0.00019178,2]
[380150300,1755577838101,-480.0,0.00019178,2]
[380150301,1755577838113,-480.0,0.00019178,2]
[380150302,1755577838123,-480.0,0.00019178,2]
[380150303,1755577838132,-480.0,0.00019178,2]
[380150304,1755577838142,-480.0,0.00019178,2]
[380150305,1755577838151,-268.05658705,0.00019178,2]
[380150306,1755577838161,-480.0,0.00019178,2]
[380150307,1755577838170,-500.0,0.00019178,2]
[380150308,1755577838179,-500.0,0.00019178,2]
[380150309,1755577838189,-500.0,0.00019178,2]
[380150310,1755577838199,-480.0,0.00019178,2]
[380150311,1755577838208,-5292.0,0.00019178,2]
[380150312,1755577838217,-480.0,0.00019178,2]
[380150313,1755577838227,-480.0,0.00019178,2]
[380150314,1755577838237,-480.0,0.00019178,2]
[380150315,1755577838246,-480.0,0.00019178,2]
[380150316,1755577838255,-480.0,0.00019178,2]
[380150317,1755577838265,-480.0,0.00019178,2]
[380150318,1755577838275,-460.0,0.00019178,2]
[380150319,1755577838284,-480.0,0.00019178,2]
[380150320,1755577838293,-480.0,0.00019178,2]
[380150321,1755577838303,-480.0,0.00019178,2]
[380150322,1755577838312,-480.0,0.00019178,2]
[380150323,1755577838321,-480.0,0.00019178,2]
[380150324,1755577838330,-480.0,0.00019178,2]
[380150325,1755577838340,-1168.24,0.00019178,2]
[380150326,1755577838349,-464.29931979,0.00019178,2]
[380150327,1755577838359,-160.37506893,0.00019178,2]
[380150328,1755577838368,-480.0,0.00019178,2]
[380150329,1755577838378,-480.0,0.00019178,2]
[380150330,1755577838387,-242.8013037,0.00019178,2]
[380150331,1755577838396,-483.38,0.00019178,2]
[380150332,1755577838406,-480.0,0.00019178,2]
[380150333,1755577838415,-480.0,0.00019178,2]
[380150334,1755577838424,-480.0,0.00019178,2]
[380150335,1755577838433,-480.0,0.00019178,2]
[380150336,1755577838443,-420.0,0.00019178,2]
[380150337,1755577838452,-514.26,0.00019178,2]
[380150338,1755577838461,-480.0,0.00019178,2]
[380150339,1755577838471,-480.0,0.00019178,2]
[380150341,1755577838480,-480.0,0.00019178,2]
[380150342,1755577838489,-460.0,0.00019178,2]
[380150343,1755577838498,-480.0,0.00019178,2]
[380150344,1755577838508,-480.0,0.00019178,2]
[380150345,1755577838517,-482.34662823,0.00019178,2]
[380150346,1755577838526,-480.0,0.00019178,2]
[380150347,1755577838535,-480.0,0.00019178,2]
[380150348,1755577838544,-480.0,0.00019178,2]
[380150349,1755577838553,-480.0,0.00019178,2]
[380150350,1755577838562,-460.0,0.00019178,2]
[380150351,1755577838572,-480.0,0.00019178,2]
[380150352,1755577838581,-480.0,0.00019178,2]
[380150353,1755577838592,-480.0,0.00019178,2]
[380150354,1755577838604,-480.0,0.00019178,2]
[380150355,1755577838614,-460.0,0.00019178,2]
[380150356,1755577838623,-480.0,0.00019178,2]
[380150357,1755577838632,-543.23159899,0.00019178,2]
[380150358,1755577838643,-480.0,0.00019178,2]
[380150359,1755577838652,-469.26344709,0.00019178,2]
[380150360,1755577838661,-480.0,0.00019178,2]
[380150361,1755577838670,-480.0,0.00019178,2]
[380150362,1755577838680,-3716.52,0.00019178,2]
[380150363,1755577838689,-460.0,0.00019178,2]
[380150364,1755577838698,-460.0,0.00019178,2]
[380150365,1755577838707,-420.84557211,0.00019178,2]
[380150366,1755577838716,-480.0,0.00019178,2]
[380150367,1755577838725,-526.61470701,0.00019178,2]
[380150368,1755577838735,-480.0,0.00019178,2]
[380150369,1755577838744,-670.43,0.00019178,2]
[380150370,1755577838753,-480.0,0.00019178,2]
[380150371,1755577838762,-460.0,0.00019178,2]
[380150372,1755577838771,-555.43097605,0.00019178,2]
[380150373,1755577838781,-538.64975566,0.00019178,2]
[380150374,1755577838790,-400.0,0.00019178,2]
[380150375,1755577838799,-401.99874247,0.00019178,2]
[380150376,1755577838809,-480.0,0.00019178,2]
[380150377,1755577838817,-480.0,0.00019178,2]
[380150378,1755577838826,-480.0,0.00019178,2]
[380150379,1755577838836,-480.0,0.00019178,2]
[380150380,1755577838845,-480.0,0.00019178,2]
[380150381,1755577838857,-460.0,0.00019178,2]
[380150382,1755577838866,-677.53,0.00019178,2]
[380150383,1755577838876,-470.07464442,0.00019178,2]
[380150384,1755577838885,-480.0,0.00019178,2]
[380150385,1755577838894,-480.0,0.00019178,2]
[380150386,1755577838903,-460.0,0.00019178,2]
[380150387,1755577838913,-480.0,0.00019178,2]
[380150388,1755577838922,-1942.95,0.00019178,2]
[380150389,1755577838931,-480.0,0.00019178,2]
[380150390,1755577838941,-456.31131669,0.00019178,2]
[380150391,1755577838950,-480.0,0.00019178,2]
[380150392,1755577838959,-480.0,0.00019178,2]
[380150393,1755577838968,-480.0,0.00019178,2]
[380150394,1755577838978,-480.0,0.00019178,2]
[380150395,1755577838987,-461.52992749,0.00019178,2]
[380150396,1755577838996,-480.0,0.00019178,2]
[380150397,1755577839005,-480.0,0.00019178,2]
[380150398,1755577839014,-460.0,0.00019178,2]
[380150399,1755577839024,-480.0,0.00019178,2]
[380150400,1755577839037,-400.0,0.00019178,2]
[380150401,1755577839046,-480.0,0.00019178,2]
[380150402,1755577839055,-463.16165257,0.00019178,2]
[380150403,1755577839065,-151.0,0.00019178,2]
[380150404,1755577839074,-151.0,0.00019178,2]
[380150405,1755577839083,-480.0,0.00019178,2]
[380150406,1755577839092,-151.0,0.00019178,2]
[380150407,1755577839105,-480.0,0.00019178,2]
[380150408,1755577839115,-480.0,0.00019178,2]
[380150409,1755577839124,-413.22224244,0.00019178,2]
[380150410,1755577839133,-500.0,0.00019178,2]
[380150411,1755577839143,-460.0,0.00019178,2]
[380150412,1755577839152,-151.0,0.00019178,2]
[380150413,1755577839162,-500.0,0.00019178,2]
[380150414,1755577839171,-337.16040648,0.00019178,2]
[380150415,1755577839180,-151.0,0.00019178,2]
[380150416,1755577839190,-151.0,0.00019178,2]
[380150417,1755577839199,-480.0,0.00019178,2]
[380150418,1755577839209,-151.0,0.00019178,2]
[380150419,1755577839218,-480.0,0.00019178,2]
[380150420,1755577839227,-151.32682171,0.00019178,2]
[380150421,1755577839238,-480.0,0.00019178,2]
[380150422,1755577839248,-151.0,0.00019178,2]
[380150423,1755577839258,-518.91338907,0.00019178,2]
[380150424,1755577839267,-480.0,0.00019178,2]
[380150425,1755577839277,-480.0,0.00019178,2]
[380150426,1755577839287,-480.0,0.00019178,2]
[380150427,1755577839296,-480.0,0.00019178,2]
[380150428,1755577839306,-495.9,0.00019178,2]
[380150429,1755577839315,-480.0,0.00019178,2]
[380150430,1755577839326,-667.72,0.00019178,2]
[380150431,1755577839335,-480.0,0.00019178,2]
[380150432,1755577839345,-480.0,0.00019178,2]
[380150433,1755577839356,-480.0,0.00019178,2]
[380150434,1755577839366,-480.0,0.00019178,2]
[380150435,1755577839375,-480.0,0.00019178,2]
[380150436,1755577839384,-1082.35,0.00019178,2]
[380150437,1755577839393,-480.0,0.00019178,2]
[380150438,1755577839403,-400.0,0.00019178,2]
[380150439,1755577839412,-539.54,0.00019178,2]
[380150440,1755577839421,-480.0,0.00019178,2]
[380150441,1755577839431,-480.0,0.00019178,2]
[380150443,1755577839537,-480.0,0.00019178,2]
[380150444,1755577839547,-485.56053033,0.00019178,2]
[380150446,1755577839557,-480.0,0.00019178,2]
[380150448,1755577839565,-480.0,0.00019178,2]
[380150450,1755577839575,-480.0,0.00019178,2]
[380150451,1755577839584,-856.58,0.00019178,2]
[380150452,1755577839593,-151.37991338,0.00019178,2]
[380150453,1755577839604,-151.0,0.00019178,2]
[380150454,1755577839613,-480.0,0.00019178,2]
[380150455,1755577839622,-151.0,0.00019178,2]
[380150456,1755577839632,-151.0,0.00019178,2]
[380150457,1755577839641,-151.0,0.00019178,2]
[380150458,1755577839650,-151.24868481,0.00019178,2]
[380150459,1755577839660,-151.30909357,0.00019178,2]
[380150461,1755577839669,-151.0,0.00019178,2]
[380150462,1755577839678,-486.55905038,0.00019178,2]
[380150463,1755577839687,-151.12657096,0.00019178,2]
[380150464,1755577839697,-480.0,0.00019178,2]
[380150465,1755577839706,-480.0,0.00019178,2]
[380150466,1755577839715,-480.0,0.00019178,2]
[380150467,1755577839724,-480.0,0.00019178,2]
[380150468,1755577839733,-460.0,0.00019178,2]
[380150470,1755577839743,-480.0,0.00019178,2]
[380150471,1755577839752,-1474.07,0.00019178,2]
[380150472,1755577839761,-151.66294125,0.00019178,2]
[380150473,1755577839771,-153.08576219,0.00019178,2]
[380150474,1755577839780,-480.0,0.00019178,2]
[380150476,1755577839790,-480.0,0.00019178,2]
[380150478,1755577839799,-480.0,0.00019178,2]
[380150480,1755577839808,-480.0,0.00019178,2]
[380150482,1755577839817,-460.0,0.00019178,2]
[380150484,1755577839827,-480.0,0.00019178,2]
[380150486,1755577839836,-480.0,0.00019178,2]
[380150488,1755577839845,-959.37,0.00019178,2]
[380150490,1755577839856,-480.0,0.00019178,2]
[380150492,1755577839865,-480.0,0.00019178,2]
[380150493,1755577839874,-486.99050327,0.00019178,2]
[380150495,1755577839883,-480.0,0.00019178,2]
[380150497,1755577839892,-480.0,0.00019178,2]
[380150499,1755577839901,-221.97258888,0.00019178,2]
[380150501,1755577839910,-460.0,0.00019178,2]
[380150503,1755577839919,-480.0,0.00019178,2]
[380150505,1755577839928,-480.0,0.00019178,2]
[380150507,1755577839937,-485.57985944,0.00019178,2]
[380150509,1755577839946,-403.246196,0.00019178,2]
[380150511,1755577839955,-480.0,0.00019178,2]
[380150513,1755577839964,-421.87573943,0.00019178,2]
[380150515,1755577839973,-480.0,0.00019178,2]
[380150516,1755577839981,-480.0,0.00019178,2]
[380150517,1755577839991,-481.88109161,0.00019178,2]
[380150518,1755577840000,-480.0,0.00019178,2]
[380150519,1755577840009,-480.0,0.00019178,2]
[380150520,1755577840019,-480.0,0.00019178,2]
[380150521,1755577840030,-480.0,0.00019178,2]
[380150522,1755577840039,-500.0,0.00019178,2]
[380150523,1755577840049,-153.46356572,0.00019178,2]
[380150524,1755577840058,-480.0,0.00019178,2]
[380150525,1755577840068,-480.0,0.00019178,2]
[380150526,1755577840078,-594.45,0.00019178,2]
[380150527,1755577840087,-480.0,0.00019178,2]
[380150528,1755577840097,-1324.08,0.00019178,2]
[380150529,1755577840108,-471.37717601,0.00019178,2]
[380150530,1755577840118,-894.36,0.00019178,2]
[380150531,1755577840127,-480.0,0.00019178,2]
[380150532,1755577840136,-480.0,0.00019178,2]
[380150533,1755577840148,-480.0,0.00019178,2]
[380150534,1755577840157,-422.41463667,0.00019178,2]
[380150535,1755577840166,-422.22849603,0.00019178,2]
[380150536,1755577840175,-480.0,0.00019178,2]
[380150537,1755577840185,-967.05,0.00019178,2]
[380150538,1755577840194,-473.34283794,0.00019178,2]
[380150539,1755577840203,-480.0,0.00019178,2]
[380150540,1755577840212,-480.0,0.00019178,2]
[380150541,1755577840221,-808.7,0.00019178,2]
[380150542,1755577840230,-480.0,0.00019178,2]
[380150543,1755577840239,-480.0,0.00019178,2]
[380150544,1755577840248,-480.0,0.00019178,2]
[380150545,1755577840257,-480.0,0.00019178,2]
[380150546,1755577840267,-480.0,0.00019178,2]
[380150547,1755577840276,-421.40587812,0.00019178,2]
[380150548,1755577840286,-420.0,0.00019178,2]
[380150549,1755577840295,-480.0,0.00019178,2]
[380150550,1755577840304,-750.98,0.00019178,2]
[380150551,1755577840313,-480.0,0.00019178,2]
[380150552,1755577840323,-307.64631675,0.00019178,2]
[380150553,1755577840332,-666.27,0.00019178,2]
[380150554,1755577840341,-480.0,0.00019178,2]
[380150555,1755577840352,-480.0,0.00019178,2]
[380150556,1755577840361,-480.0,0.00019178,2]
[380150557,1755577840370,-480.0,0.00019178,2]
[380150558,1755577840379,-480.0,0.00019178,2]
[380150559,1755577840388,-480.0,0.00019178,2]
[380150560,1755577840398,-151.0,0.00019178,2]
[380150561,1755577840408,-480.0,0.00019178,2]
[380150562,1755577840417,-420.0,0.00019178,2]
[380150563,1755577840427,-480.0,0.00019178,2]
[380150564,1755577840436,-480.0,0.00019178,2]
[380150565,1755577840445,-480.0,0.00019178,2]
[380150566,1755577840455,-480.0,0.00019178,2]
[380150567,1755577840464,-480.0,0.00019178,2]
[380150568,1755577840473,-420.66256802,0.00019178,2]
[380150569,1755577840482,-480.0,0.00019178,2]
[380150570,1755577840491,-460.0,0.00019178,2]
[380150571,1755577840500,-573.89,0.00019178,2]
[380150572,1755577840511,-409.93891646,0.00019178,2]
[380150573,1755577840522,-480.0,0.00019178,2]
[380150574,1755577840532,-838.61,0.00019178,2]
[380150575,1755577840541,-485.20139775,0.00019178,2]
[380150576,1755577840550,-480.0,0.00019178,2]
[380150577,1755577840559,-445.88401595,0.00019178,2]
[380150578,1755577840569,-480.0,0.00019178,2]
[380150579,1755577840578,-480.0,0.00019178,2]
[380150580,1755577840587,-480.0,0.00019178,2]
[380150581,1755577840596,-1946.4,0.00019178,2]
[380150582,1755577840606,-1586.8,0.00019178,2]
[380150583,1755577840615,-480.0,0.00019178,2]
[380150584,1755577840624,-480.0,0.00019178,2]
[380150585,1755577840633,-480.0,0.00019178,2]
[380150586,1755577840642,-1528.27,0.00019178,2]
[380150587,1755577840651,-389.46361166,0.00019178,2]
[380150588,1755577840661,-834.18,0.00019178,2]
[380150589,1755577840670,-480.0,0.00019178,2]
[380150590,1755577840679,-480.0,0.00019178,2]
[380150591,1755577840689,-1328.91,0.00019178,2]
[380150592,1755577840698,-480.0,0.00019178,2]
[380150593,1755577840707,-460.0,0.00019178,2]
[380150594,1755577840716,-480.0,0.00019178,2]
[380150595,1755577840726,-480.0,0.00019178,2]
[380150596,1755577840735,-1226.65,0.00019178,2]
[380150597,1755577840744,-480.0,0.00019178,2]
[380150598,1755577840753,-559.48243317,0.00019178,2]
[380150599,1755577840763,-480.0,0.00019178,2]
[380150600,1755577840771,-480.0,0.00019178,2]
[380150601,1755577840780,-418.0,0.00019178,2]
[380150602,1755577840789,-480.0,0.00019178,2]
[380150603,1755577840799,-853.33,0.00019178,2]
[380150604,1755577840808,-480.0,0.00019178,2]
[380150605,1755577840817,-464.37385112,0.00019178,2]
[380150606,1755577840826,-480.0,0.00019178,2]
[380150607,1755577840837,-574.55,0.00019178,2]
[380150608,1755577840847,-582.10457914,0.00019178,2]
[380150609,1755577840858,-461.69830671,0.00019178,2]
[380150610,1755577840867,-151.0,0.00019178,2]
[380150611,1755577840876,-151.0,0.00019178,2]
[380150612,1755577840885,-422.36852799,0.00019178,2]
[380150613,1755577840894,-151.0,0.00019178,2]
[380150614,1755577840904,-480.0,0.00019178,2]
[380150615,1755577840912,-500.0,0.00019178,2]
[380150616,1755577840922,-151.0,0.00019178,2]
[380150617,1755577840931,-480.0,0.00019178,2]
[380150618,1755577840940,-480.0,0.00019178,2]
[380150619,1755577840949,-151.0,0.00019178,2]
[380150620,1755577840959,-1597.05,0.00019178,2]
[380150621,1755577840968,-500.0,0.00019178,2]
[380150622,1755577840977,-857.47,0.00019178,2]
[380150623,1755577840986,-151.0,0.00019178,2]
[380150624,1755577840995,-480.0,0.00019178,2]
[380150625,1755577841004,-151.0,0.00019178,2]
[380150626,1755577841013,-151.0,0.00019178,2]
[380150627,1755577841022,-151.0,0.00019178,2]
[380150628,1755577841035,-151.0,0.00019178,2]
[380150629,1755577841044,-460.0,0.00019178,2]
[380150630,1755577841053,-651.92,0.00019178,2]
[380150631,1755577841062,-151.0,0.00019178,2]
[380150632,1755577841072,-480.0,0.00019178,2]
[380150633,1755577841081,-480.0,0.00019178,2]
[380150634,1755577841090,-206.17436885,0.00019178,2]
[380150635,1755577841104,-151.0,0.00019178,2]
[380150636,1755577841113,-480.0,0.00019178,2]
[380150637,1755577841123,-480.0,0.00019178,2]
[380150638,1755577841132,-500.0,0.00019178,2]
[380150639,1755577841142,-500.0,0.00019178,2]